bitfinex-derivatives/quotes_SOLF0:USTF0_20241015
["timestamp","ask_amount","ask_price","bid_price","bid_amount"]
[1728952878679,3.1805,157.23,157.2,3.1809]
[1728952879180,3.1805,157.23,157.19,3.30622]
[1728952880181,5.42,157.24,157.19,0.12502]
[1728952881386,8.6003,157.24,157.21,3.1808]
[1728952881786,3.1803,157.24,157.21,3.1808]
[1728952884599,3.1803,157.24,157.19,0.12502]
[1728952884600,3.18,157.26,157.22,3.1805]
[1728952884792,5.3,157.27,157.22,3.1805]
[1728952885186,3.1801,157.25,157.22,3.1805]
[1728952888292,3.18,157.26,157.23,3.1804]
[1728952888683,0.12502,157.31,157.19,6.70292]
[1728952888889,0.12502,157.31,157.25,15.27]
[1728952889087,0.12502,157.31,157.27,15.27]
[1728952889495,0.12502,157.31,157.29,3.1792]
[1728952890297,3.1794,157.29,157.27,3.1796]
[1728952890486,0.12502,157.31,157.25,15.27]
[1728952890791,0.12502,157.31,157.3,3.1791]
[1728952890991,0.12502,157.31,157.27,15.27]
[1728952890992,0.12502,157.37,157.29,15.27]
[1728952891293,0.12502,157.37,157.31,15.27]
[1728952891598,0.12502,157.37,157.33,15.27]
[1728952891891,0.12502,157.37,157.35,15.27]
[1728952892092,3.1767,157.42,157.38,3.1774]
[1728952892292,5.42502,157.43,157.38,3.1774]
[1728952892686,5.42502,157.43,157.37,3.1776]
[1728952892892,0.12502,157.43,157.35,20.57]
[1728952893293,0.12502,157.43,157.38,3.1774]
[1728952893888,0.12502,157.43,157.35,29.71]
[1728952894294,0.12502,157.43,157.37,24.41]
[1728952894493,0.12502,157.43,157.37,3.1776]
[1728952894691,3.1768,157.42,157.35,5.3]
[1728952894887,0.12502,157.43,157.35,5.3]
[1728952895401,3.1771,157.4,157.34,8.4781]
[1728952895690,3.1771,157.4,157.34,3.1781]
[1728952895992,0.12502,157.43,157.33,5.3]
[1728952896197,0.12502,157.43,157.34,24.41]
[1728952897090,0.12502,157.43,157.36,24.41]
[1728952897290,0.12502,157.43,157.39,3.1771]
[1728952897489,0.12502,157.43,157.37,5.3]
[1728952897992,3.177,157.41,157.37,5.3]
[1728952899491,3.1773,157.39,157.34,1.2952]
[1728952899688,24.53502,157.43,157.34,1.2952]
[1728952899891,24.53502,157.43,157.36,24.41]
[1728952899892,0.12502,157.43,157.36,24.41]
[1728952900086,0.12502,157.49,157.41,24.41]
[1728952900288,0.12502,157.49,157.43,24.41]
[1728952900589,0.12502,157.49,157.45,3.1759]
[1728952900790,0.12518,157.51,157.44,5.3]
[1728952901391,0.12518,157.51,157.47,3.1756]
[1728952901392,3.30008,157.51,157.47,3.1756]
[1728952902489,3.30008,157.51,157.46,3.1758]
[1728952903987,0.12518,157.51,157.46,3.1758]
[1728952904193,3.1751,157.5,157.46,3.1758]
[1728952910097,0.12518,157.51,157.45,5.3]
[1728952910298,0.12518,157.51,157.46,24.41]
[1728952912004,0.12518,157.51,157.48,3.1753]
[1728952912504,3.1752,157.5,157.46,3.1758]
[1728952912703,3.1752,157.5,157.45,5.3]
[1728952913097,0.12518,157.51,157.48,3.1753]
[1728952914001,0.12518,157.51,157.47,27.5855]
[1728952914605,3.30018,157.51,157.47,27.5855]
[1728952914899,0.12518,157.51,157.47,27.5855]
[1728952915909,0.12518,157.51,157.48,15.25]
[1728952916500,3.30008,157.51,157.48,15.25]
[1728952917505,3.175,157.5,157.48,15.25]
[1728952923104,3.30018,157.51,157.48,18.4254]
[1728952923303,3.30018,157.51,157.5,15.25]
[1728952924510,0.12502,157.55,157.5,15.25]
[1728952924716,0.12502,157.55,157.52,15.25]
[1728952925205,0.12502,157.55,157.52,18.4245]
[1728952925514,0.12502,157.55,157.52,15.25]
[1728952925714,3.1744,157.54,157.52,15.25]
[1728952928309,5.48502,157.55,157.47,23.7856]
[1728952929217,5.48502,157.55,157.49,3.1752]
[1728952929518,5.48502,157.55,157.49,18.4252]
[1728952929922,3.1745,157.53,157.5,3.175]
[1728952930115,0.12502,157.55,157.49,15.25]
[1728952930314,0.12502,157.55,157.51,15.25]
[1728952930715,3.1744,157.54,157.51,18.4247]
[1728952933122,0.12502,157.55,157.49,15.25]
[1728952933425,0.12502,157.55,157.47,20.61]
[1728952933724,3.175,157.51,157.47,20.61]
[1728952934322,3.1752,157.5,157.47,3.1755]
[1728952934916,15.37502,157.55,157.46,5.36]
[1728952935123,3.1752,157.49,157.46,8.5358]
[1728952935420,18.4706224,157.52,157.44,1.3895]
[1728952935617,15.25,157.52,157.44,1.3895]
[1728952935817,15.25,157.52,157.44,4.5657]
[1728952936224,3.1756,157.48,157.44,4.5657]
[1728952937219,18.39090874,157.52,157.44,4.5657]
[1728952937422,3.1758,157.47,157.44,1.3895]
[1728952937620,18.39090874,157.52,157.43,15.37502]
[1728952938422,3.176,157.46,157.43,15.37502]
[1728952939023,5.38,157.49,157.43,15.37502]
[1728952939625,3.1762,157.45,157.43,15.37502]
[1728952945126,5.38,157.49,157.44,15.25]
[1728952945323,5.2,157.51,157.44,15.25]
[1728952945731,3.1755,157.48,157.44,18.4261]
[1728952947135,3.1756,157.47,157.44,18.4261]
[1728952947737,3.1756,157.47,157.44,3.1761]
[1728952947939,3.1756,157.47,157.43,3.30132]
[1728952949239,3.1759,157.46,157.43,0.12502]
[1728952949433,8.35481417,157.51,157.43,0.12502]
[1728952950032,3.1758,157.47,157.44,3.1762]
[1728952951337,5.2,157.51,157.43,0.12502]
[1728952951544,3.1754,157.49,157.45,3.1759]
[1728952951739,3.975,157.53,157.44,15.25]
[1728952952044,7.7895,157.53,157.46,15.25]
[1728952952745,3.175,157.51,157.48,3.1753]
[1728952952942,3.175,157.51,157.46,15.25]
[1728952953235,3.175,157.51,157.47,3.1755]
[1728952953443,3.1751,157.5,157.47,3.1755]
[1728952954042,7.7895,157.53,157.45,3.1759]
[1728952954043,3.1755,157.48,157.45,3.1759]
[1728952954441,3.19813664,157.52,157.44,20.45]
[1728952954643,3.1757,157.47,157.45,3.1759]
[1728952954841,3.1757,157.47,157.43,15.37502]
[1728952955348,3.1758,157.47,157.43,15.37502]
[1728952955846,5.2,157.49,157.43,0.12502]
[1728952956444,3.1762,157.44,157.43,0.12502]
[1728952956654,5.2,157.45,157.37,0.12502]
[1728952956846,6.5648,157.45,157.37,0.12502]
[1728952957149,3.1767,157.42,157.37,3.30252]
[1728952957546,3.1765,157.43,157.38,3.1773]
[1728952957845,15.25,157.41,157.37,0.12502]
[1728952958046,3.1782,157.35,157.31,0.12502]
[1728952958253,5.2,157.35,157.31,0.12502]
[1728952958642,3.1787,157.32,157.31,0.12502]
[1728952958846,15.25,157.34,157.25,1.50682]
[1728952958847,15.25,157.34,157.25,0.12502]
[1728952959046,15.25,157.31,157.25,0.12502]
[1728952959251,3.1796,157.28,157.25,0.12502]
[1728952960148,6.4969,157.3,157.25,0.12502]
[1728952960641,9.6761,157.3,157.25,0.12502]
[1728952961956,5.2,157.3,157.25,3.30502]
[1728952962256,15.25,157.33,157.25,0.12502]
[1728952962445,15.25,157.33,157.25,15.37502]
[1728952962648,5.2,157.34,157.27,15.25]
[1728952963751,5.2,157.34,157.29,3.1792]
[1728952965151,15.25,157.32,157.25,0.12502]
[1728952965350,18.429,157.31,157.25,0.12502]
[1728952965556,5.2,157.3,157.25,0.12502]
[1728952965955,8.3791,157.3,157.25,0.12502]
[1728952966354,8.3791,157.3,157.25,3.30512]
[1728952966751,5.2,157.3,157.25,0.12502]
[1728952967160,3.1793,157.29,157.25,0.12502]
[1728952968657,3.1793,157.29,157.25,3.30512]
[1728952968858,3.1793,157.29,157.25,0.12502]
[1728952969057,5.2,157.3,157.25,0.12502]
[1728952969257,3.1795,157.28,157.25,0.12502]
[1728952969759,5.2,157.3,157.25,0.12502]
[1728952969960,3.1794,157.29,157.25,0.12502]
[1728952971151,5.2,157.3,157.25,0.12502]
[1728952971352,8.3792,157.3,157.26,3.1798]
[1728952971761,5.2,157.3,157.26,3.1798]
[1728952972152,15.25,157.28,157.25,0.12502]
[1728952972559,18.4295,157.28,157.25,0.12502]
[1728952973656,3.1797,157.27,157.25,0.12502]
[1728952974455,15.25,157.28,157.25,0.12502]
[1728952974662,18.4295,157.28,157.25,0.12502]
[1728952975561,5.2,157.3,157.25,0.12502]
[1728952975756,5.2,157.3,157.26,3.1797]
[1728952976456,8.3791,157.3,157.26,3.1797]
[1728952977056,0.12502,157.37,157.25,0.12502]
[1728952977368,18.4288,157.32,157.28,3.1794]
[1728952977667,5.28,157.31,157.28,3.1794]
[1728952979162,15.25,157.3,157.25,0.12502]
[1728952980063,18.4292,157.3,157.25,0.12502]
[1728952980368,15.25,157.3,157.25,0.12502]
[1728952980567,3.1795,157.28,157.25,3.30502]
[1728952980965,15.25,157.3,157.27,3.1796]
[1728952981166,15.25,157.3,157.25,0.12502]
[1728952982859,18.37542618,157.3,157.25,0.12502]
[1728952983065,15.25,157.28,157.25,0.12502]
[1728952983467,3.1797,157.27,157.25,0.12502]
[1728952984566,15.25,157.28,157.25,0.12502]
[1728952984770,18.4294,157.29,157.25,3.30502]
[1728952986565,15.25,157.29,157.27,3.1797]
[1728952987072,18.4293,157.29,157.26,3.1797]
[1728952988375,3.1795,157.28,157.25,3.30502]
[1728952988567,18.4295,157.28,157.25,3.30502]
[1728952988870,3.1799,157.26,157.25,0.12502]
[1728952989265,20.53,157.26,157.2,1.3818]
[1728952989464,3.1803,157.24,157.21,3.1807]
[1728952990071,3.1803,157.24,157.21,3.1809]
[1728952990465,15.25,157.24,157.19,0.12502]
[1728952990775,3.1805,157.23,157.2,3.181]
[1728952992170,18.4304,157.24,157.2,3.181]
[1728952993175,3.1805,157.23,157.2,3.181]
[1728952993379,3.1805,157.23,157.19,0.12502]
[1728952993380,15.25,157.21,157.19,0.12502]
[1728952993876,18.431,157.21,157.19,0.12502]
[1728952995178,15.25,157.21,157.19,0.12502]
[1728952995476,3.1811,157.2,157.19,0.12502]
[1728952996073,15.25,157.21,157.19,0.12502]
[1728952996374,15.25,157.23,157.2,3.181]
[1728952997280,18.4305,157.23,157.2,3.181]
[1728952997477,15.25,157.23,157.19,0.12502]
[1728952997683,15.25,157.2,157.19,0.12502]
[1728952997878,15.25,157.22,157.19,0.12502]
[1728952998275,15.25,157.22,157.2,3.181]
[1728952998580,23.7104,157.24,157.19,0.12502]
[1728952999284,20.53,157.24,157.19,0.12502]
[1728952999678,20.53,157.24,157.21,3.1807]
[1728952999883,20.53,157.24,157.19,0.12502]
[1728953000280,15.25,157.24,157.22,3.1806]
[1728953000482,15.25,157.27,157.19,0.12502]
[1728953000680,20.53,157.27,157.19,0.12502]
[1728953001077,23.7098,157.27,157.19,0.12502]
[1728953002782,23.7098,157.27,157.23,3.1805]
[1728953002984,3.1799,157.26,157.23,3.1805]
[1728953004281,3.1799,157.26,157.24,3.1802]
[1728953004477,23.7098,157.27,157.19,0.12502]
[1728953004681,23.6498,157.27,157.19,0.12502]
[1728953004882,8.3998,157.27,157.24,3.1802]
[1728953005684,8.3998,157.27,157.2,2.6015]
[1728953005888,5.22,157.27,157.26,3.1799]
[1728953006584,18.4293,157.29,157.26,3.1799]
[1728953007488,3.1796,157.28,157.26,3.1799]
[1728953007785,8.33477349,157.3,157.2,7.8215]
[1728953007786,15.25,157.27,157.2,7.8215]
[1728953008194,3.18,157.26,157.2,7.8215]
[1728953008693,3.18,157.26,157.23,3.1804]
[1728953009182,3.1801,157.25,157.23,3.1804]
[1728953009585,15.25,157.27,157.23,3.1804]
[1728953010490,3.18,157.26,157.23,3.1804]
[1728953010987,18.4298,157.27,157.24,3.1802]
[1728953011792,3.18,157.26,157.22,3.1807]
[1728953011991,3.18,157.26,157.2,7.8215]
[1728953011992,15.25,157.27,157.2,2.6015]
[1728953012293,15.25,157.24,157.19,0.12502]
[1728953012492,3.1805,157.23,157.2,3.181]
[1728953014594,3.1807,157.22,157.19,3.30622]
[1728953015292,15.25,157.24,157.19,0.12502]
[1728953015492,3.1811,157.21,157.19,0.12502]
[1728953016689,20.47,157.22,157.19,0.12502]
[1728953016894,3.1809,157.21,157.19,0.12502]
[1728953018688,3.1811,157.21,157.19,0.12502]
[1728953022207,3.1811,157.2,157.19,0.12502]
[1728953023097,15.25,157.2,157.13,0.12502]
[1728953023301,3.1822,157.15,157.13,0.12502]
[1728953023500,15.25,157.17,157.13,0.12502]
[1728953023696,5.22,157.18,157.13,0.12502]
[1728953023697,3.1823,157.14,157.13,0.12502]
[1728953026309,8.4023,157.14,157.13,0.12502]
[1728953026711,3.1823,157.14,157.13,0.12502]
[1728953026902,8.4023,157.14,157.13,0.12502]
[1728953030211,23.6518,157.17,157.13,0.12502]
[1728953030407,23.6518,157.17,157.14,3.1822]
[1728953030713,20.47,157.17,157.13,0.12502]
[1728953032615,18.4323,157.15,157.13,0.12502]
[1728953033513,3.1823,157.14,157.13,0.12502]
[1728953036015,12.9723,157.14,157.13,0.12502]
[1728953038913,3.1819,157.16,157.14,3.1822]
[1728953039109,5.22,157.17,157.13,0.12502]
[1728953039314,9.79,157.15,157.13,0.12502]
[1728953039809,9.79,157.16,157.13,0.12502]
[1728953040013,9.79,157.16,157.15,3.1819]
[1728953040422,5.1,157.17,157.15,3.1819]
[1728953040614,18.0714,157.19,157.16,3.1818]
[1728953041320,3.1816,157.18,157.16,3.1818]
[1728953041616,3.1816,157.18,157.13,9.91502]
[1728953041617,9.79,157.18,157.17,3.1817]
[1728953041818,1.3336,157.24,157.16,9.79]
[1728953042118,9.79,157.24,157.22,3.1807]
[1728953042416,15.01502,157.25,157.22,3.1807]
[1728953042614,15.01502,157.25,157.23,3.1804]
[1728953043023,9.79,157.24,157.2,1.38]
[1728953043230,9.79,157.22,157.2,1.38]
[1728953043411,9.79,157.22,157.19,3.1812]
[1728953043615,9.79,157.21,157.16,9.79]
[1728953043820,3.1808,157.22,157.18,3.1813]
[1728953046019,15.28,157.23,157.15,1.3234]
[1728953046517,18.4607,157.23,157.18,3.1813]
[1728953046926,20.50502,157.25,157.18,3.1813]
[1728953047427,20.50502,157.25,157.15,16.6034]
[1728953047621,15.28,157.23,157.17,3.1816]
[1728953048026,3.1814,157.19,157.15,4.5054]
[1728953049027,3.1815,157.18,157.15,4.5054]
[1728953050021,20.38,157.21,157.15,1.3234]
[1728953050222,3.1812,157.2,157.17,3.1817]
[1728953051125,5.1,157.21,157.15,1.3234]
[1728953051427,8.2809,157.21,157.18,3.1814]
[1728953052630,3.1811,157.2,157.15,1.3234]
[1728953053424,5.1,157.21,157.15,1.3234]
[1728953053932,20.38,157.24,157.15,16.6034]
[1728953054128,3.1808,157.22,157.17,3.1816]
[1728953054333,3.1808,157.22,157.15,16.6034]
[1728953054734,20.38,157.24,157.15,16.6034]
[1728953055033,3.1806,157.23,157.19,3.1811]
[1728953055234,20.38,157.24,157.19,3.1811]
[1728953055422,3.1807,157.22,157.19,3.1811]
[1728953056023,20.38,157.24,157.18,3.1813]
[1728953056232,20.38,157.24,157.15,1.3234]
[1728953056632,3.1806,157.23,157.2,3.181]
[1728953056827,0.12502,157.25,157.16,5.1]
[1728953057135,5.22502,157.25,157.17,1.2847]
[1728953057336,3.1805,157.23,157.2,3.181]
[1728953058131,20.50502,157.25,157.17,1.2847]
[1728953058338,0.12502,157.25,157.18,15.28]
[1728953059138,0.12502,157.25,157.23,3.1803]
[1728953059353,0.12502,157.25,157.2,15.28]
[1728953059547,0.12502,157.25,157.21,2.7029]
[1728953060142,15.28,157.23,157.17,1.2847]
[1728953060540,3.1809,157.22,157.18,3.1813]
[1728953061043,3.1809,157.22,157.17,1.2847]
[1728953061247,3.1809,157.22,157.19,3.1813]
[1728953061847,3.1811,157.2,157.17,1.2847]
[1728953062044,3.1811,157.2,157.15,6.4918]
[1728953062439,3.1811,157.2,157.16,3.1817]
[1728953062844,3.1811,157.2,157.15,6.4918]
[1728953063446,15.28,157.23,157.15,6.4918]
[1728953063648,3.181,157.21,157.15,6.4918]
[1728953063850,3.181,157.21,157.17,3.1816]
[1728953065952,3.1811,157.2,157.17,3.1816]
[1728953068351,3.1816,157.18,157.15,1.3918]
[1728953068554,20.36,157.2,157.15,1.3918]
[1728953069356,3.1816,157.18,157.15,4.5739]
[1728953069544,3.1816,157.18,157.15,1.3918]
[1728953070452,3.1816,157.18,157.13,0.12502]
[1728953070453,3.1823,157.14,157.13,0.12502]
[1728953074056,15.28,157.18,157.13,0.12502]
[1728953074246,5.08,157.18,157.13,0.12502]
[1728953075558,3.1822,157.15,157.13,0.12502]
[1728953077765,3.1823,157.14,157.13,0.12502]
[1728953081863,12.9723,157.14,157.13,0.12502]
[1728953083264,18.0523,157.14,157.13,0.12502]
[1728953083858,20.36,157.14,157.07,0.12502]
[1728953084057,15.28,157.11,157.07,0.12502]
[1728953084259,3.1833,157.1,157.07,0.12502]
[1728953085158,3.1834,157.09,157.07,0.12502]
[1728953085362,5.08,157.14,157.07,0.12502]
[1728953086366,3.1827,157.12,157.08,3.1835]
[1728953087169,3.1826,157.13,157.07,0.12502]
[1728953088274,3.1826,157.13,157.09,3.1832]
[1728953089375,5.08,157.14,157.07,0.12502]
[1728953089580,8.2624,157.14,157.1,3.183]
[1728953090281,5.08,157.14,157.1,3.183]
[1728953090468,3.1825,157.13,157.07,0.12502]
[1728953090663,3.1825,157.13,157.09,3.1832]
[1728953091168,8.2621,157.15,157.11,3.1828]
[1728953091568,8.2621,157.15,157.08,15.28]
[1728953091872,5.08,157.15,157.12,3.1826]
[1728953092074,5.08,157.15,157.08,15.28]
[1728953092467,8.2621,157.15,157.08,15.28]
[1728953092973,8.2621,157.15,157.12,3.1827]
[1728953093174,5.08,157.15,157.08,15.28]
[1728953093570,3.1819,157.16,157.13,3.1825]
[1728953093772,8.2615,157.18,157.1,15.28]
[1728953094078,8.2615,157.18,157.11,1.3171]
[1728953094876,3.1817,157.17,157.13,3.1825]
[1728953095466,3.1817,157.17,157.11,1.3171]
[1728953095467,8.2615,157.18,157.14,3.1821]
[1728953095970,8.2615,157.18,157.11,1.3171]
[1728953096171,5.08,157.18,157.16,3.1818]
[1728953096482,0.12502,157.19,157.14,15.28]
[1728953096778,0.12502,157.19,157.18,3.1815]
[1728953100379,0.12502,157.19,157.14,5.08]
[1728953100876,3.30642,157.19,157.15,3.182]
[1728953101187,0.12502,157.19,157.14,5.08]
[1728953101480,3.1815,157.18,157.14,3.1822]
[1728953102882,15.40502,157.19,157.11,6.3971]
[1728953103081,16.67772,157.19,157.11,6.3971]
[1728953103383,3.1822,157.15,157.11,9.5798]
[1728953103574,3.1822,157.15,157.11,6.3971]
[1728953103880,15.28,157.17,157.1,3.1831]
[1728953104089,5.08,157.16,157.1,3.1831]
[1728953104578,5.08,157.16,157.08,20.36]
[1728953104779,3.1824,157.14,157.11,3.1829]
[1728953105487,3.1822,157.15,157.11,3.1829]
[1728953106184,5.08,157.16,157.11,3.1829]
[1728953106478,15.28,157.15,157.07,0.12502]
[1728953106977,3.1826,157.13,157.09,3.1832]
[1728953108682,3.1826,157.13,157.07,0.12502]
[1728953108882,5.08,157.16,157.08,15.28]
[1728953109579,3.1832,157.1,157.07,0.12502]
[1728953109786,15.28,157.11,157.07,0.12502]
[1728953109986,3.183,157.11,157.07,3.30862]
[1728953110181,20.36,157.15,157.07,0.12502]
[1728953110482,5.08,157.15,157.07,0.12502]
[1728953110780,8.2623,157.15,157.08,15.28]
[1728953111082,5.08,157.15,157.12,3.1827]
[1728953111673,3.1821,157.15,157.12,3.1827]
[1728953111881,15.28,157.17,157.12,3.1826]
[1728953112580,3.182,157.16,157.12,3.1826]
[1728953112880,1.39772,157.19,157.13,3.1824]
[1728953113081,0.12502,157.19,157.14,15.28]
[1728953113284,0.12502,157.19,157.16,15.28]
[1728953113482,0.12502,157.19,157.18,3.1815]
[1728953115388,5.08,157.24,157.21,3.1809]
[1728953115586,5.08,157.24,157.17,5.08]
[1728953115978,0.12502,157.25,157.24,3.1803]
[1728953117687,0.12502,157.31,157.24,15.28]
[1728953117890,0.12502,157.31,157.25,5.08]
[1728953118291,0.12502,157.31,157.27,15.28]
[1728953118792,0.12502,157.31,157.28,3.1794]
[1728953119196,0.12502,157.31,157.27,15.28]
[1728953119587,0.12502,157.31,157.29,3.1791]
[1728953119790,0.12502,157.31,157.27,15.28]
[1728953120082,0.12502,157.31,157.29,15.28]
[1728953120288,0.12502,157.31,157.3,3.1791]
[1728953120683,0.12502,157.31,157.29,8.2592]
[1728953120880,0.12502,157.31,157.27,15.28]
[1728953121095,0.12502,157.31,157.27,5.08]
[1728953121595,0.12502,157.31,157.28,3.1795]
[1728953122887,0.12502,157.31,157.29,3.1791]
[1728953123397,0.12502,157.31,157.3,3.1791]
[1728953123999,0.12502,157.37,157.33,3.1784]
[1728953124793,3.30272,157.37,157.33,3.1784]
[1728953125197,3.30272,157.37,157.3,7.6757]
[1728953125393,3.30272,157.37,157.32,3.1786]
[1728953126901,0.12502,157.37,157.3,7.6757]
[1728953127196,0.12502,157.37,157.31,15.28]
[1728953127394,0.12502,157.37,157.33,15.28]
[1728953128097,0.12502,157.37,157.34,5.1]
[1728953128397,0.12502,157.37,157.36,3.1779]
[1728953128898,0.12502,157.37,157.34,8.2782]
[1728953129288,0.12502,157.37,157.34,5.1]
[1728953130193,0.12502,157.37,157.35,3.1779]
[1728953131091,0.12502,157.37,157.36,3.1779]
[1728953132497,0.12502,157.43,157.35,15.28]
[1728953132697,0.12502,157.43,157.37,15.28]
[1728953133002,3.1767,157.42,157.38,5.1]
[1728953133197,3.1767,157.42,157.36,1.2773]
[1728953133403,3.1767,157.42,157.38,3.1773]
[1728953133599,0.12502,157.43,157.36,6.3773]
[1728953133803,3.177,157.41,157.36,6.3773]
[1728953133997,3.177,157.41,157.36,1.2773]
[1728953134194,3.177,157.41,157.37,3.1775]
[1728953136706,3.30162,157.43,157.38,3.1773]
[1728953137003,0.12502,157.43,157.37,15.28]
[1728953137405,0.12502,157.43,157.42,3.1766]
[1728953137606,0.12502,157.43,157.39,20.38]
[1728953138107,0.12502,157.43,157.41,3.1767]
[1728953139799,0.12502,157.43,157.4,3.177]
[1728953140106,0.12502,157.43,157.38,20.38]
[1728953140809,0.12502,157.43,157.38,15.28]
[1728953141105,0.12502,157.43,157.38,20.38]
[1728953141507,3.30152,157.43,157.4,3.177]
[1728953141702,0.12502,157.43,157.4,3.177]
[1728953142303,0.12502,157.43,157.38,20.38]
[1728953142611,0.12502,157.43,157.41,3.1767]
[1728953142807,0.12502,157.43,157.37,1.3635]
[1728953142808,0.12502,157.49,157.42,20.38]
[1728953143003,0.12502,157.49,157.48,3.1754]
[1728953144809,0.12502,157.49,157.47,3.1756]
[1728953146010,0.12502,157.49,157.46,5.1]
[1728953146713,3.30042,157.49,157.46,5.1]
[1728953147109,3.30042,157.49,157.45,3.176]
[1728953151123,0.12502,157.49,157.43,1.3735]
[1728953151323,0.12502,157.49,157.42,20.38]
[1728953151819,3.1758,157.47,157.43,3.1764]
[1728953158620,0.12502,157.49,157.42,15.28]
[1728953158821,0.12502,157.49,157.41,8.3368]
[1728953159216,3.1757,157.47,157.42,3.1765]
[1728953159419,0.12502,157.49,157.42,3.1765]
[1728953159623,0.12502,157.49,157.41,5.16]
[1728953159819,3.176,157.46,157.43,3.1764]
[1728953160622,0.12502,157.49,157.42,15.28]
[1728953160932,0.12502,157.49,157.44,15.28]
[1728953161131,0.12502,157.49,157.48,3.1754]
[1728953161426,0.12502,157.55,157.48,15.28]
[1728953161626,0.12502,157.55,157.52,3.1745]
[1728953162022,0.12502,157.55,157.48,15.28]
[1728953162023,0.12502,157.55,157.5,5.16]
[1728953162228,3.29902,157.55,157.5,5.16]
[1728953162424,0.12502,157.55,157.51,15.28]
[1728953162721,0.12502,157.55,157.52,3.1745]
[1728953162925,0.12502,157.55,157.51,15.28]
[1728953163929,0.12502,157.55,157.54,3.1742]
[1728953165433,0.12502,157.55,157.54,8.3342]
[1728953166231,0.12502,157.55,157.53,5.16]
[1728953166731,0.12502,157.55,157.54,3.1742]
[1728953169132,0.12502,157.55,157.53,1.2621]
[1728953169436,0.12502,157.55,157.53,5.16]
[1728953169928,0.12502,157.55,157.5,15.28]
[1728953170133,0.12502,157.55,157.51,5.16]
[1728953170340,0.12502,157.55,157.49,1.2862]
[1728953170529,0.12502,157.55,157.52,3.1745]
[1728953170729,0.12502,157.55,157.5,20.44]
[1728953171233,0.12502,157.55,157.52,3.1744]
[1728953171533,0.12502,157.55,157.5,20.44]
[1728953171534,0.12502,157.55,157.54,15.28]
[1728953171738,0.12502,157.61,157.54,20.44]
[1728953172436,0.12502,157.61,157.56,15.28]
[1728953172838,0.12502,157.61,157.58,3.1733]
[1728953173933,3.29792,157.61,157.57,3.1736]
[1728953174637,0.12502,157.61,157.55,1.2846]
[1728953174940,15.40502,157.61,157.52,5.16]
[1728953175142,0.12502,157.61,157.5,22.9996]
[1728953175439,15.28,157.59,157.51,3.1748]
[1728953175634,5.16,157.58,157.51,3.1748]
[1728953176138,3.174,157.55,157.51,3.1748]
[1728953176334,5.16,157.58,157.52,3.1746]
[1728953176537,5.16,157.58,157.52,15.28]
[1728953176733,5.28502,157.61,157.52,15.28]
[1728953177040,5.28502,157.61,157.53,3.1744]
[1728953177233,3.1737,157.57,157.53,3.1744]
[1728953178236,5.28502,157.61,157.52,15.28]
[1728953178436,0.12502,157.61,157.54,15.28]